[Event "GrandPrix_30.05"]
[Site "Chess.com"]
[Date "2020.05.30"]
[Round "7"]
[White "rasmussvane"]
[Black "Haykos"]
[Result "1-0"]
[WhiteElo "2484"]
[BlackElo "2272"]
[TimeControl "600+2"]
[EndTime "11:31:23 PDT"]
[Termination "rasmussvane won on time"]

1. Nf3 {[%clk 0:10:01.9]} 1... Nf6 {[%clk 0:09:44.9]} 2. g3 {[%clk 0:10:01.8]}
2... d5 {[%clk 0:09:42.1]} 3. Bg2 {[%clk 0:10:03.2]} 3... c6 {[%clk 0:09:43.1]}
4. O-O {[%clk 0:10:04.4]} 4... Bg4 {[%clk 0:09:43.8]} 5. h3 {[%clk 0:10:05.7]}
5... Bh5 {[%clk 0:09:44.7]} 6. d4 {[%clk 0:10:06.6]} 6... Nbd7 {[%clk
0:09:45.7]} 7. c4 {[%clk 0:10:07.8]} 7... e6 {[%clk 0:09:43.2]} 8. cxd5 {[%clk
0:10:07.8]} 8... cxd5 {[%clk 0:09:29.8]} 9. Qb3 {[%clk 0:10:08.2]} 9... Qb6
{[%clk 0:09:19.1]} 10. Nc3 {[%clk 0:10:08.9]} 10... Bd6 {[%clk 0:09:16]} 11. e4
{[%clk 0:09:12.9]} 11... Qxb3 {[%clk 0:09:01.2]} 12. axb3 {[%clk 0:09:14.8]}
12... Nxe4 {[%clk 0:09:02.4]} 13. Nxe4 {[%clk 0:09:14.1]} 13... dxe4 {[%clk
0:09:02]} 14. Ng5 {[%clk 0:09:06.6]} 14... Nf6 {[%clk 0:08:17.6]} 15. Nxe4
{[%clk 0:09:04.5]} 15... Nxe4 {[%clk 0:07:01.9]} 16. Bxe4 {[%clk 0:09:06.4]}
16... Rb8 {[%clk 0:06:52.4]} 17. Rxa7 {[%clk 0:09:03]} 17... Be2 {[%clk
0:06:53]} 18. Re1 {[%clk 0:08:48.6]} 18... Ba6 {[%clk 0:06:54.2]} 19. Bd2 {[%clk
0:07:50.2]} 19... O-O {[%clk 0:06:35.5]} 20. Rc1 {[%clk 0:05:37.6]} 20... Rfd8
{[%clk 0:06:06]} 21. b4 {[%clk 0:04:37.1]} 21... h6 {[%clk 0:04:07.6]} 22. b5
{[%clk 0:04:26.6]} 22... Bxb5 {[%clk 0:04:08.1]} 23. Rxb7 {[%clk 0:04:27.6]}
23... Rxb7 {[%clk 0:04:09.2]} 24. Bxb7 {[%clk 0:04:29.3]} 24... Be7 {[%clk
0:02:53]} 25. Rc8 {[%clk 0:04:24.7]} 25... Rxc8 {[%clk 0:02:50.3]} 26. Bxc8
{[%clk 0:04:26.6]} 26... Kf8 {[%clk 0:02:51.9]} 27. Bc3 {[%clk 0:04:14.6]} 27...
h5 {[%clk 0:02:31.3]} 28. Bb7 {[%clk 0:04:10.1]} 28... h4 {[%clk 0:02:31.8]} 29.
d5 {[%clk 0:03:19.1]} 29... exd5 {[%clk 0:02:00.4]} 30. Bxd5 {[%clk 0:03:21]}
30... f5 {[%clk 0:01:57.1]} 31. Kg2 {[%clk 0:03:15.1]} 31... Be2 {[%clk
0:01:52.4]} 32. b3 {[%clk 0:02:58.9]} 32... g5 {[%clk 0:01:51.4]} 33. gxh4
{[%clk 0:02:56.2]} 33... gxh4 {[%clk 0:01:52.6]} 34. Bc4 {[%clk 0:02:29.7]}
34... Bd1 {[%clk 0:01:22.8]} 35. b4 {[%clk 0:02:28.1]} 35... Ke8 {[%clk
0:01:10.2]} 36. Bd3 {[%clk 0:02:22.7]} 36... f4 {[%clk 0:01:06.7]} 37. Be4
{[%clk 0:02:13.3]} 37... Kd7 {[%clk 0:01:07.7]} 38. b5 {[%clk 0:02:10]} 38...
Be2 {[%clk 0:00:58.1]} 39. Bc6+ {[%clk 0:02:00.8]} 39... Kc7 {[%clk 0:00:52.4]}
40. Be5+ {[%clk 0:01:12.3]} 40... Bd6 {[%clk 0:00:51.3]} 41. Bf6 {[%clk
0:01:13.2]} 41... f3+ {[%clk 0:00:50.6]} 42. Bxf3 {[%clk 0:01:12.7]} 42... Bxb5
{[%clk 0:00:51.6]} 43. Bxh4 {[%clk 0:01:13.6]} 43... Kd7 {[%clk 0:00:51.7]} 44.
Bg4+ {[%clk 0:00:52.1]} 44... Ke8 {[%clk 0:00:52]} 45. Bg5 {[%clk 0:00:53]}
45... Kf7 {[%clk 0:00:50.6]} 46. h4 {[%clk 0:00:50.7]} 46... Bc6+ {[%clk
0:00:50.6]} 47. Kh3 {[%clk 0:00:49.2]} 47... Kg6 {[%clk 0:00:51.1]} 48. f4
{[%clk 0:00:47.6]} 48... Bb5 {[%clk 0:00:49.8]} 49. h5+ {[%clk 0:00:46.3]} 49...
Kg7 {[%clk 0:00:48.2]} 50. Bf5 {[%clk 0:00:46.3]} 50... Bf8 {[%clk 0:00:30.5]}
51. Be4 {[%clk 0:00:32.9]} 51... Bc4 {[%clk 0:00:29.8]} 52. Kg4 {[%clk
0:00:30.8]} 52... Be2+ {[%clk 0:00:28.2]} 53. Kh4 {[%clk 0:00:30.4]} 53... Bc4
{[%clk 0:00:29.6]} 54. Bf3 {[%clk 0:00:26]} 54... Kf7 {[%clk 0:00:25.4]} 55. Kg3
{[%clk 0:00:24.1]} 55... Bc5 {[%clk 0:00:22]} 56. f5 {[%clk 0:00:21.8]} 56...
Bd6+ {[%clk 0:00:19.5]} 57. Kg4 {[%clk 0:00:22]} 57... Be5 {[%clk 0:00:16.2]}
58. h6 {[%clk 0:00:21.3]} 58... Bb3 {[%clk 0:00:09.3]} 59. Be3 {[%clk
0:00:16.4]} 59... Bc4 {[%clk 0:00:09.3]} 60. Kg5 {[%clk 0:00:14.6]} 60... Bf6+
{[%clk 0:00:10.1]} 61. Kf4 {[%clk 0:00:15.8]} 61... Bb3 {[%clk 0:00:11.3]} 62.
Bh5+ {[%clk 0:00:16.9]} 62... Kg8 {[%clk 0:00:12]} 63. Bg6 {[%clk 0:00:18.4]}
63... Bf7 {[%clk 0:00:10.7]} 64. Kg4 {[%clk 0:00:18.8]} 64... Bd5 {[%clk
0:00:10.8]} 65. Bg5 {[%clk 0:00:17.2]} 65... Bxg5 {[%clk 0:00:08.6]} 66. Kxg5
{[%clk 0:00:19.1]} 66... Be4 {[%clk 0:00:08.5]} 67. f6 {[%clk 0:00:19.8]} 67...
Bd5 {[%clk 0:00:09.2]} 68. Kf4 {[%clk 0:00:20.7]} 68... Bc4 {[%clk 0:00:10]} 69.
Ke5 {[%clk 0:00:22]} 69... Kh8 {[%clk 0:00:11.4]} 70. Kd6 {[%clk 0:00:22.9]}
70... Bb3 {[%clk 0:00:10.3]} 71. Ke7 {[%clk 0:00:24]} 71... Bc4 {[%clk
0:00:11.8]} 72. Bf7 {[%clk 0:00:21.4]} 72... Be2 {[%clk 0:00:12.9]} 73. Be6
{[%clk 0:00:21.5]} 73... Bh5 {[%clk 0:00:13.7]} 74. Bf5 {[%clk 0:00:22.5]} 74...
Kg8 {[%clk 0:00:14.8]} 75. Be4 {[%clk 0:00:16]} 75... Kh8 {[%clk 0:00:15.8]} 76.
Bf3 {[%clk 0:00:14.2]} 76... Bg6 {[%clk 0:00:15.4]} 77. Bg4 {[%clk 0:00:15.4]}
77... Kh7 {[%clk 0:00:16]} 78. Bf5 {[%clk 0:00:14.1]} 1-0

[Event "GrandPrix_30.05"]
[Site "Chess.com"]
[Date "2020.05.30"]
[Round "7"]
[White "Lion_DL"]
[Black "sahidi"]
[Result "1-0"]
[WhiteElo "2171"]
[BlackElo "2172"]
[TimeControl "600+2"]
[EndTime "11:33:15 PDT"]
[Termination "Lion_DL won by resignation"]

1. e4 {[%clk 0:10:01.9]} 1... e5 {[%clk 0:09:57.2]} 2. f4 {[%clk 0:10:02]} 2...
d5 {[%clk 0:09:57]} 3. exd5 {[%clk 0:10:02.3]} 3... exf4 {[%clk 0:09:33]} 4. Nf3
{[%clk 0:10:00.5]} 4... Nf6 {[%clk 0:09:32.6]} 5. Bc4 {[%clk 0:10:00.9]} 5...
Nxd5 {[%clk 0:08:57.1]} 6. O-O {[%clk 0:09:59.8]} 6... Be7 {[%clk 0:08:50.8]} 7.
Bxd5 {[%clk 0:09:57.8]} 7... Qxd5 {[%clk 0:08:51.1]} 8. Nc3 {[%clk 0:09:59.6]}
8... Qd6 {[%clk 0:08:21.2]} 9. d4 {[%clk 0:09:57.8]} 9... O-O {[%clk 0:08:21.5]}
10. Nb5 {[%clk 0:07:56.3]} 10... Qb6 {[%clk 0:07:50.7]} 11. Qd3 {[%clk
0:07:36.4]} 11... c6 {[%clk 0:07:23.7]} 12. Nc3 {[%clk 0:07:28.6]} 12... Qc7
{[%clk 0:06:53.5]} 13. Ne5 {[%clk 0:07:16]} 13... Nd7 {[%clk 0:06:33.4]} 14.
Bxf4 {[%clk 0:07:11.2]} 14... Nxe5 {[%clk 0:06:17.7]} 15. Bxe5 {[%clk
0:07:13.1]} 15... Bd6 {[%clk 0:06:18.4]} 16. Rae1 {[%clk 0:06:49.7]} 16... Be6
{[%clk 0:06:08.8]} 17. Bxd6 {[%clk 0:06:01.1]} 17... Qxd6 {[%clk 0:06:08.2]} 18.
Ne4 {[%clk 0:06:03]} 18... Qd5 {[%clk 0:06:06.4]} 19. b3 {[%clk 0:05:32.1]}
19... Rad8 {[%clk 0:06:04.2]} 20. c3 {[%clk 0:05:29.2]} 20... c5 {[%clk
0:06:02.8]} 21. Qg3 {[%clk 0:05:30.6]} 21... Kh8 {[%clk 0:05:31.1]} 22. Nxc5
{[%clk 0:05:29]} 22... b6 {[%clk 0:05:25.3]} 23. Nxe6 {[%clk 0:04:26.3]} 23...
fxe6 {[%clk 0:05:23.6]} 24. Rxf8+ {[%clk 0:04:25.8]} 24... Rxf8 {[%clk
0:05:23.9]} 25. Qe5 {[%clk 0:04:26.4]} 25... Qc6 {[%clk 0:05:18.7]} 26. c4
{[%clk 0:04:01]} 26... Qd7 {[%clk 0:05:14.9]} 27. d5 {[%clk 0:02:49.8]} 27...
exd5 {[%clk 0:05:04.2]} 28. cxd5 {[%clk 0:02:51.7]} 28... h6 {[%clk 0:04:55.5]}
29. Qe7 {[%clk 0:02:15.8]} 29... Qf5 {[%clk 0:04:31.8]} 30. h3 {[%clk
0:01:56.4]} 30... Kh7 {[%clk 0:04:25]} 31. Qe4 {[%clk 0:01:44.9]} 31... Qxe4
{[%clk 0:04:22.4]} 32. Rxe4 {[%clk 0:01:45.4]} 32... Rd8 {[%clk 0:04:20.6]} 33.
Rd4 {[%clk 0:01:39.2]} 33... Kg6 {[%clk 0:04:20.3]} 34. Kf2 {[%clk 0:01:39.9]}
34... Kf5 {[%clk 0:04:19.4]} 35. Ke3 {[%clk 0:01:37.6]} 35... Ke5 {[%clk
0:04:17]} 36. Re4+ {[%clk 0:01:35.3]} 36... Kd6 {[%clk 0:04:13.8]} 37. Kd4
{[%clk 0:01:35.2]} 37... Rf8 {[%clk 0:04:11.9]} 38. Re6+ {[%clk 0:01:36.1]}
38... Kd7 {[%clk 0:04:12.6]} 39. Rg6 {[%clk 0:01:36.7]} 39... Rf7 {[%clk
0:04:13.8]} 40. a4 {[%clk 0:01:35.6]} 40... Re7 {[%clk 0:03:56.7]} 41. b4 {[%clk
0:01:31.3]} 41... Rf7 {[%clk 0:03:56.9]} 42. g3 {[%clk 0:01:30.5]} 42... Re7
{[%clk 0:03:47.1]} 43. a5 {[%clk 0:01:31.3]} 43... bxa5 {[%clk 0:03:47.6]} 44.
bxa5 {[%clk 0:01:33.2]} 44... Rf7 {[%clk 0:03:46.2]} 45. Ra6 {[%clk 0:01:31.1]}
45... Kc8 {[%clk 0:03:43.5]} 46. Ke5 {[%clk 0:01:28.7]} 46... Kb7 {[%clk
0:03:35.8]} 47. Rg6 {[%clk 0:01:26.8]} 47... Re7+ {[%clk 0:03:19.2]} 48. Re6
{[%clk 0:01:08]} 48... Rd7 {[%clk 0:02:52.3]} 49. a6+ {[%clk 0:01:01.6]} 49...
Kc7 {[%clk 0:02:51.4]} 50. Rc6+ {[%clk 0:01:01.9]} 50... Kd8 {[%clk 0:02:52.1]}
51. d6 {[%clk 0:01:02.1]} 51... Rf7 {[%clk 0:02:41.6]} 52. Rc3 {[%clk
0:01:03.3]} 52... Rf1 {[%clk 0:02:33.5]} 53. Ke6 {[%clk 0:00:56.8]} 53... Re1+
{[%clk 0:02:28.1]} 54. Kf7 {[%clk 0:00:57.4]} 54... g5 {[%clk 0:02:27.8]} 55.
Rc7 {[%clk 0:00:46.7]} 55... Rd1 {[%clk 0:02:16.3]} 56. Ke6 {[%clk 0:00:47.8]}
56... Re1+ {[%clk 0:02:13.8]} 57. Kd5 {[%clk 0:00:49]} 57... Rd1+ {[%clk
0:02:12.6]} 58. Kc6 {[%clk 0:00:49.6]} 58... Rc1+ {[%clk 0:02:05.8]} 59. Kb7
{[%clk 0:00:50.4]} 59... Rd1 {[%clk 0:02:06.3]} 60. Kxa7 {[%clk 0:00:41.1]}
60... Rxd6 {[%clk 0:02:06.4]} 61. Rc3 {[%clk 0:00:38.9]} 61... Rd1 {[%clk
0:02:01.2]} 62. g4 {[%clk 0:00:38.1]} 62... Kd7 {[%clk 0:01:41.6]} 63. Kb6
{[%clk 0:00:36.4]} 63... Rb1+ {[%clk 0:01:41.1]} 64. Kc5 {[%clk 0:00:34.2]}
64... Kc7 {[%clk 0:01:18.7]} 65. Ra3 {[%clk 0:00:32.7]} 65... Kb8 {[%clk
0:01:05.6]} 66. a7+ {[%clk 0:00:33.5]} 66... Ka8 {[%clk 0:01:05.5]} 67. Ra6
{[%clk 0:00:27.4]} 67... Rd1 {[%clk 0:00:58.6]} 68. Rxh6 {[%clk 0:00:20.9]}
68... Kxa7 {[%clk 0:00:57.3]} 69. Rh5 {[%clk 0:00:21.3]} 69... Rd3 {[%clk
0:00:46.3]} 70. Kc4 {[%clk 0:00:22.5]} 70... Ra3 {[%clk 0:00:44.1]} 71. Kd4
{[%clk 0:00:21.9]} 71... Ra5 {[%clk 0:00:32.6]} 72. Ke4 {[%clk 0:00:19.8]} 72...
Kb7 {[%clk 0:00:31.7]} 73. h4 {[%clk 0:00:12.1]} 73... Ra4+ {[%clk 0:00:31.6]}
74. Kf5 {[%clk 0:00:13.4]} 74... gxh4 {[%clk 0:00:30.1]} 75. Rxh4 {[%clk
0:00:15.3]} 75... Kc7 {[%clk 0:00:27.2]} 76. Rh2 {[%clk 0:00:14.7]} 76... Kd7
{[%clk 0:00:24.9]} 77. Re2 {[%clk 0:00:16.2]} 77... Ra5+ {[%clk 0:00:16.9]} 78.
Kg6 {[%clk 0:00:17.1]} 78... Ra6+ {[%clk 0:00:16.4]} 79. Kh5 {[%clk 0:00:18.1]}
79... Ra1 {[%clk 0:00:13.8]} 80. g5 {[%clk 0:00:18.9]} 80... Rh1+ {[%clk
0:00:11.7]} 81. Kg6 {[%clk 0:00:20.4]} 81... Rg1 {[%clk 0:00:12.4]} 82. Kf6
{[%clk 0:00:21.7]} 82... Rf1+ {[%clk 0:00:12.8]} 83. Kg7 {[%clk 0:00:23.1]}
83... Rg1 {[%clk 0:00:13.5]} 84. g6 {[%clk 0:00:24.4]} 84... Rh1 {[%clk
0:00:09.1]} 85. Kg8 {[%clk 0:00:22.7]} 85... Rg1 {[%clk 0:00:10.1]} 86. g7
{[%clk 0:00:23.9]} 86... Rh1 {[%clk 0:00:11.3]} 87. Re4 {[%clk 0:00:21.4]} 87...
Rg1 {[%clk 0:00:09.4]} 88. Kf7 {[%clk 0:00:21.9]} 88... Rf1+ {[%clk 0:00:09.4]}
89. Kg6 {[%clk 0:00:23.3]} 89... Rg1+ {[%clk 0:00:10.8]} 90. Kf6 {[%clk
0:00:24.7]} 90... Kd6 {[%clk 0:00:07.5]} 91. Re8 {[%clk 0:00:20.3]} 91... Rf1+
{[%clk 0:00:08.4]} 92. Kg6 {[%clk 0:00:19.2]} 92... Rg1+ {[%clk 0:00:09.2]} 93.
Kf6 {[%clk 0:00:18.4]} 93... Rf1+ {[%clk 0:00:10]} 94. Kg6 {[%clk 0:00:19.6]}
94... Rg1+ {[%clk 0:00:10.8]} 95. Kh7 {[%clk 0:00:20.8]} 95... Rh1+ {[%clk
0:00:11.7]} 96. Kg8 {[%clk 0:00:21.9]} 96... Kd7 {[%clk 0:00:11.2]} 97. Re3
{[%clk 0:00:22.8]} 97... Rg1 {[%clk 0:00:05.6]} 98. Re4 {[%clk 0:00:23.9]} 98...
Rh1 {[%clk 0:00:06.2]} 99. Kf7 {[%clk 0:00:24.5]} 99... Rf1+ {[%clk 0:00:07.1]}
100. Kg6 {[%clk 0:00:24.9]} 100... Rg1+ {[%clk 0:00:08.2]} 101. Kf6 {[%clk
0:00:25.4]} 101... Kd6 {[%clk 0:00:08.7]} 102. Rd4+ {[%clk 0:00:25.6]} 102...
Kc7 {[%clk 0:00:06.9]} 103. Rf4 {[%clk 0:00:25.3]} 103... Kd7 {[%clk 0:00:06.6]}
104. Kf7 {[%clk 0:00:26.5]} 104... Rxg7+ {[%clk 0:00:06.9]} 105. Kxg7 {[%clk
0:00:27.2]} 105... Ke6 {[%clk 0:00:08.8]} 106. Kg6 {[%clk 0:00:27.5]} 106... Ke5
{[%clk 0:00:09]} 107. Kg5 {[%clk 0:00:28.5]} 1-0

[Event "GrandPrix_30.05"]
[Site "Chess.com"]
[Date "2020.05.30"]
[Round "7"]
[White "Valeriy_Neverov"]
[Black "Tokarev_Sergey"]
[Result "1/2-1/2"]
[WhiteElo "2080"]
[BlackElo "1996"]
[TimeControl "600+2"]
[EndTime "11:33:37 PDT"]
[Termination "Game drawn by repetition"]

1. d4 {[%clk 0:09:53]} 1... e6 {[%clk 0:10:01.1]} 2. c4 {[%clk 0:09:49.4]} 2...
d5 {[%clk 0:09:51.2]} 3. Nc3 {[%clk 0:09:45.6]} 3... Nf6 {[%clk 0:09:50.2]} 4.
cxd5 {[%clk 0:09:41.2]} 4... exd5 {[%clk 0:09:49.7]} 5. Bg5 {[%clk 0:09:41.7]}
5... Be7 {[%clk 0:09:49.6]} 6. e3 {[%clk 0:09:41.6]} 6... h6 {[%clk 0:09:50]} 7.
Bh4 {[%clk 0:09:36.4]} 7... c6 {[%clk 0:09:48.7]} 8. Bd3 {[%clk 0:09:35.5]} 8...
O-O {[%clk 0:09:47.3]} 9. Nge2 {[%clk 0:09:24.8]} 9... Bg4 {[%clk 0:09:45.7]}
10. f3 {[%clk 0:09:23]} 10... Be6 {[%clk 0:09:45]} 11. O-O {[%clk 0:09:12]}
11... b6 {[%clk 0:09:38.4]} 12. Bf2 {[%clk 0:08:37.5]} 12... c5 {[%clk
0:09:35.9]} 13. Nf4 {[%clk 0:07:40.6]} 13... cxd4 {[%clk 0:09:32]} 14. exd4
{[%clk 0:07:40.6]} 14... Bd6 {[%clk 0:09:04.5]} 15. Qd2 {[%clk 0:07:02.9]} 15...
Qc8 {[%clk 0:08:44.7]} 16. Rac1 {[%clk 0:06:40.7]} 16... Nc6 {[%clk 0:08:03.4]}
17. Rfe1 {[%clk 0:06:14.2]} 17... Qb8 {[%clk 0:07:52.8]} 18. Nxe6 {[%clk
0:04:14.7]} 18... Bxh2+ {[%clk 0:07:51]} 19. Kf1 {[%clk 0:04:08.6]} 19... fxe6
{[%clk 0:07:51.6]} 20. Rxe6 {[%clk 0:04:08.3]} 20... Nd8 {[%clk 0:06:44.4]} 21.
Rxf6 {[%clk 0:04:05.5]} 21... Rxf6 {[%clk 0:06:27.1]} 22. Nxd5 {[%clk
0:04:06.4]} 22... Rf7 {[%clk 0:05:42.1]} 23. Qe2 {[%clk 0:03:40.5]} 23... Nb7
{[%clk 0:05:08.2]} 24. Qe4 {[%clk 0:03:28.3]} 24... Rd7 {[%clk 0:03:42.5]} 25.
Qe6+ {[%clk 0:02:51.8]} 25... Rf7 {[%clk 0:03:30.2]} 26. Ne7+ {[%clk 0:02:09.9]}
26... Kf8 {[%clk 0:03:20.4]} 27. Rc8+ {[%clk 0:02:09.1]} 27... Qxc8 {[%clk
0:03:21.5]} 28. Nxc8 {[%clk 0:02:09.1]} 28... Nd8 {[%clk 0:03:15.1]} 29. Qh3
{[%clk 0:01:50.7]} 29... Bf4 {[%clk 0:03:11.4]} 30. Bc4 {[%clk 0:01:49.4]} 30...
Rc7 {[%clk 0:03:06.2]} 31. Qf5+ {[%clk 0:01:44.2]} 31... Nf7 {[%clk 0:03:07.7]}
32. Qxf4 {[%clk 0:01:31.1]} 32... Rxc4 {[%clk 0:03:00.6]} 33. Nd6 {[%clk
0:01:14.3]} 33... Rc7 {[%clk 0:03:01.9]} 34. d5 {[%clk 0:01:03.8]} 34... Rd8
{[%clk 0:02:57.1]} 35. Nf5 {[%clk 0:00:55.9]} 35... Rb7 {[%clk 0:02:44]} 36. d6
{[%clk 0:00:54.4]} 36... Rbd7 {[%clk 0:02:43]} 37. Bd4 {[%clk 0:00:54.2]} 37...
g5 {[%clk 0:02:38.3]} 38. Qe4 {[%clk 0:00:43.6]} 38... Nxd6 {[%clk 0:02:34.5]}
39. Qe6 {[%clk 0:00:41.2]} 39... Nxf5 {[%clk 0:02:31.1]} 40. Qxf5+ {[%clk
0:00:41.4]} 40... Rf7 {[%clk 0:02:31.5]} 41. Qe5 {[%clk 0:00:40.2]} 41... g4
{[%clk 0:02:27]} 42. Kf2 {[%clk 0:00:39.2]} 42... gxf3 {[%clk 0:02:24.3]} 43.
gxf3 {[%clk 0:00:40.2]} 43... Rfd7 {[%clk 0:02:00]} 44. Bc3 {[%clk 0:00:39.4]}
44... Rf7 {[%clk 0:01:53.5]} 45. Qh8+ {[%clk 0:00:36]} 45... Ke7 {[%clk
0:01:53.8]} 46. Qxh6 {[%clk 0:00:35.8]} 46... Rd5 {[%clk 0:01:48.6]} 47. Qe3+
{[%clk 0:00:34]} 47... Kd6 {[%clk 0:01:44.2]} 48. f4 {[%clk 0:00:32.8]} 48...
Kd7 {[%clk 0:01:44.2]} 49. Qe4 {[%clk 0:00:32]} 49... Rff5 {[%clk 0:01:40]} 50.
Be5 {[%clk 0:00:32.4]} 50... Rdxe5 {[%clk 0:01:33.9]} 51. Qb7+ {[%clk
0:00:27.5]} 51... Kd6 {[%clk 0:01:29]} 52. Qxa7 {[%clk 0:00:26.2]} 52... Rxf4+
{[%clk 0:01:28.4]} 53. Kg3 {[%clk 0:00:26.7]} 53... Rb4 {[%clk 0:01:22.3]} 54.
Qb8+ {[%clk 0:00:24.5]} 54... Kd5 {[%clk 0:01:19.3]} 55. Qd8+ {[%clk 0:00:23.4]}
55... Kc5 {[%clk 0:01:13.7]} 56. Qc7+ {[%clk 0:00:21.9]} 56... Kd5 {[%clk
0:01:11.2]} 57. Qd7+ {[%clk 0:00:16.3]} 57... Kc5 {[%clk 0:01:06.8]} 58. Qc7+
{[%clk 0:00:15.1]} 58... Kd5 {[%clk 0:01:03.7]} 59. Qd7+ {[%clk 0:00:16]} 59...
Kc4 {[%clk 0:00:34.6]} 60. b3+ {[%clk 0:00:06.3]} 60... Kc3 {[%clk 0:00:28]} 61.
Qg7 {[%clk 0:00:06]} 61... Re4 {[%clk 0:00:26]} 62. Qc7+ {[%clk 0:00:06.4]}
62... Kb2 {[%clk 0:00:25.1]} 63. Qxb6 {[%clk 0:00:06.8]} 63... Kxa2 {[%clk
0:00:26.2]} 64. Qf2+ {[%clk 0:00:05.4]} 64... Re2 {[%clk 0:00:26.7]} 65. Qb6
{[%clk 0:00:05.1]} 65... Re8 {[%clk 0:00:23.9]} 66. b4 {[%clk 0:00:04.9]} 66...
R2e6 {[%clk 0:00:22.5]} 67. Qa5+ {[%clk 0:00:04]} 67... Kb3 {[%clk 0:00:24.1]}
68. Qd5+ {[%clk 0:00:04.8]} 68... Kxb4 {[%clk 0:00:25.6]} 69. Qd4+ {[%clk
0:00:05.9]} 69... Kb5 {[%clk 0:00:26.4]} 70. Qd5+ {[%clk 0:00:07]} 70... Kb6
{[%clk 0:00:27.7]} 71. Qd4+ {[%clk 0:00:08]} 71... Kc7 {[%clk 0:00:29]} 72. Qc5+
{[%clk 0:00:08.3]} 72... Kd7 {[%clk 0:00:29.8]} 73. Qd5+ {[%clk 0:00:08.9]}
73... Rd6 {[%clk 0:00:31]} 74. Qf7+ {[%clk 0:00:09.5]} 74... Re7 {[%clk
0:00:32.3]} 75. Qf5+ {[%clk 0:00:10.4]} 75... Rde6 {[%clk 0:00:31.8]} 76. Qb5+
{[%clk 0:00:10.7]} 76... Kd8 {[%clk 0:00:31.8]} 77. Qb8+ {[%clk 0:00:11.1]}
77... Kd7 {[%clk 0:00:32.9]} 78. Qb5+ {[%clk 0:00:11.9]} 78... Kd6 {[%clk
0:00:33.4]} 79. Qb6+ {[%clk 0:00:12.9]} 79... Ke5 {[%clk 0:00:34.8]} 80. Qe3+
{[%clk 0:00:12.4]} 80... Kf6 {[%clk 0:00:36.3]} 81. Qh6+ {[%clk 0:00:12.4]}
81... Kf7 {[%clk 0:00:35.7]} 82. Qh7+ {[%clk 0:00:13.3]} 82... Ke8 {[%clk
0:00:36.9]} 83. Qh8+ {[%clk 0:00:13.3]} 83... Kd7 {[%clk 0:00:36.6]} 84. Qd4+
{[%clk 0:00:14]} 84... Rd6 {[%clk 0:00:38.5]} 85. Qa4+ {[%clk 0:00:14.5]} 85...
Ke6 {[%clk 0:00:36.1]} 86. Qe4+ {[%clk 0:00:12.6]} 86... Kf7 {[%clk 0:00:32.4]}
87. Qf5+ {[%clk 0:00:10.5]} 87... Rf6 {[%clk 0:00:31.8]} 88. Qh5+ {[%clk
0:00:07.4]} 88... Kg7 {[%clk 0:00:30.9]} 89. Qd5 {[%clk 0:00:05.8]} 89... Ref7
{[%clk 0:00:29.2]} 90. Qd4 {[%clk 0:00:05.2]} 90... Kg8 {[%clk 0:00:28.6]} 91.
Qd8+ {[%clk 0:00:03.4]} 91... Kh7 {[%clk 0:00:28.6]} 92. Qd3+ {[%clk 0:00:03.2]}
92... Kg8 {[%clk 0:00:30.3]} 93. Qd8+ {[%clk 0:00:03.3]} 93... Rf8 {[%clk
0:00:31.6]} 94. Qd5+ {[%clk 0:00:03.8]} 94... Kh7 {[%clk 0:00:30.1]} 95. Qd3+
{[%clk 0:00:03.6]} 95... Kg7 {[%clk 0:00:27.7]} 96. Qd4 {[%clk 0:00:02.9]} 96...
Rf7 {[%clk 0:00:29.6]} 97. Kg4 {[%clk 0:00:02.9]} 97... Kh6 {[%clk 0:00:28.5]}
98. Qd2+ {[%clk 0:00:03.8]} 98... Kh7 {[%clk 0:00:29.2]} 99. Qd3+ {[%clk
0:00:04]} 99... Kg8 {[%clk 0:00:30.2]} 100. Kg5 {[%clk 0:00:04.4]} 100... Rf8
{[%clk 0:00:32.1]} 101. Qd5+ {[%clk 0:00:05.2]} 101... R6f7 {[%clk 0:00:33]}
102. Qe6 {[%clk 0:00:05.5]} 102... Kh8 {[%clk 0:00:29.6]} 103. Kg6 {[%clk
0:00:05]} 103... Rg7+ {[%clk 0:00:30.2]} 104. Kh6 {[%clk 0:00:05.1]} 104... Rh7+
{[%clk 0:00:30.6]} 105. Kg6 {[%clk 0:00:05.2]} 105... Rg8+ {[%clk 0:00:31.7]}
106. Kf5 {[%clk 0:00:05.8]} 106... Rh5+ {[%clk 0:00:31.2]} 107. Kf4 {[%clk
0:00:05.2]} 107... Rh4+ {[%clk 0:00:31.9]} 108. Kf3 {[%clk 0:00:04.9]} 108...
Rh7 {[%clk 0:00:31.6]} 109. Qe5+ {[%clk 0:00:05.2]} 109... Rgg7 {[%clk
0:00:31.4]} 110. Qe8+ {[%clk 0:00:05.8]} 110... Rg8 {[%clk 0:00:32.8]} 111. Qe5+
{[%clk 0:00:06.6]} 111... Rgg7 {[%clk 0:00:34.2]} 112. Qe8+ {[%clk 0:00:07.3]}
112... Rg8 {[%clk 0:00:35.4]} 113. Qe5+ {[%clk 0:00:07.9]} 1/2-1/2

[Event "GrandPrix_30.05"]
[Site "Chess.com"]
[Date "2020.05.30"]
[Round "8"]
[White "VerdeNotte"]
[Black "bratkoo"]
[Result "1-0"]
[WhiteElo "2551"]
[BlackElo "2209"]
[TimeControl "600+2"]
[EndTime "11:39:51 PDT"]
[Termination "VerdeNotte won by resignation"]

1. a3 {[%clk 0:10:01.9]} 1... e5 {[%clk 0:09:58.9]} 2. c4 {[%clk 0:10:02.7]}
2... Nf6 {[%clk 0:09:57.6]} 3. Nf3 {[%clk 0:10:01.4]} 3... e4 {[%clk 0:09:55.6]}
4. Nd4 {[%clk 0:10:02.2]} 4... Nc6 {[%clk 0:09:55.7]} 5. Nxc6 {[%clk 0:09:58.6]}
5... bxc6 {[%clk 0:09:56.8]} 6. d4 {[%clk 0:09:59.8]} 6... d5 {[%clk 0:09:57.7]}
7. Nc3 {[%clk 0:09:58.2]} 7... Bd6 {[%clk 0:09:57.7]} 8. Bg5 {[%clk 0:09:57.2]}
8... dxc4 {[%clk 0:09:43.9]} 9. Nxe4 {[%clk 0:09:46.6]} 9... Be7 {[%clk
0:09:43.5]} 10. Bxf6 {[%clk 0:09:46]} 10... Bxf6 {[%clk 0:09:45.4]} 11. e3
{[%clk 0:09:44]} 11... Be6 {[%clk 0:09:42.2]} 12. Rc1 {[%clk 0:09:19]} 12... Bd5
{[%clk 0:09:40.8]} 13. Qc2 {[%clk 0:09:00.7]} 13... O-O {[%clk 0:09:34.4]} 14.
Bxc4 {[%clk 0:08:57.9]} 14... Bxe4 {[%clk 0:09:35.5]} 15. Qxe4 {[%clk
0:08:58.8]} 15... Re8 {[%clk 0:09:37]} 16. Qxc6 {[%clk 0:08:52.8]} 16... Qxd4
{[%clk 0:09:36.3]} 17. Qxa8 {[%clk 0:08:41.5]} 1-0

[Event "GrandPrix_30.05"]
[Site "Chess.com"]
[Date "2020.05.30"]
[Round "8"]
[White "Sam_ChessMood"]
[Black "Tesla37"]
[Result "1/2-1/2"]
[WhiteElo "2592"]
[BlackElo "2743"]
[TimeControl "600+2"]
[EndTime "11:40:42 PDT"]
[Termination "Game drawn by agreement"]

1. e4 {[%clk 0:10:01.9]} 1... Nf6 {[%clk 0:09:58.6]} 2. e5 {[%clk 0:10:01.3]}
2... Nd5 {[%clk 0:09:59.1]} 3. d4 {[%clk 0:10:02.4]} 3... d6 {[%clk 0:10:00.1]}
4. Nf3 {[%clk 0:10:03.3]} 4... dxe5 {[%clk 0:10:01.1]} 5. Nxe5 {[%clk
0:10:03.9]} 5... c6 {[%clk 0:10:02.6]} 6. Be2 {[%clk 0:10:04.2]} 6... Bf5 {[%clk
0:10:02.6]} 7. O-O {[%clk 0:09:59.1]} 7... Nd7 {[%clk 0:10:01.1]} 8. Nf3 {[%clk
0:09:52.5]} 8... e6 {[%clk 0:09:58.5]} 9. c4 {[%clk 0:09:49.8]} 9... N5f6 {[%clk
0:09:41.6]} 10. Bf4 {[%clk 0:09:36.3]} 10... Be7 {[%clk 0:09:39]} 11. Nc3 {[%clk
0:09:36.9]} 11... O-O {[%clk 0:09:33.7]} 12. Qb3 {[%clk 0:09:16.2]} 12... Qb6
{[%clk 0:09:24.2]} 13. Rfd1 {[%clk 0:09:15.9]} 13... h6 {[%clk 0:09:10.9]} 14.
h3 {[%clk 0:09:16.6]} 14... Ne4 {[%clk 0:08:39.7]} 1/2-1/2